lending/lending_fUSD_20260104
["ID","MTS","AMOUNT","RATE_DAILY","PERIOD"]
[400386371,1767485442499,-3676.0,0.00038541,7]
[400386372,1767485442509,-153.4974924,0.00038797,7]
[400386373,1767485442519,-150.0,0.00038797,7]
[400386374,1767485442529,-150.0,0.00038797,7]
[400386375,1767485442539,-150.0,0.00038797,7]
[400386376,1767485442550,-235.2601907,0.00038797,7]
[400386377,1767485442560,-150.0,0.00038797,7]
[400386378,1767485442571,-150.0,0.00038797,7]
[400386379,1767485442581,-150.0,0.00038797,7]
[400386380,1767485442591,-150.0,0.00038797,7]
[400386381,1767485442601,-150.0,0.00038797,7]
[400386382,1767485442611,-150.0,0.00038797,7]
[400386383,1767485442622,-150.0,0.00038797,7]
[400386384,1767485442632,-150.0,0.00038797,7]
[400386385,1767485442642,-150.0,0.00038797,7]
[400386386,1767485442653,-150.0,0.00038797,7]
[400386387,1767485442663,-150.0,0.00038797,7]
[400386388,1767485442673,-235.2601907,0.00038841,7]
[400386389,1767485442685,-150.0,0.00038858,7]
[400386390,1767485442695,-150.0,0.00038863,7]
[400386391,1767485442705,-150.0,0.0003887,7]
[400386392,1767485442720,-150.0,0.00038876,7]
[400386393,1767485442730,-150.0,0.00038882,7]
[400386394,1767485442748,-235.2601907,0.00038884,7]
[400386395,1767485442758,-150.0,0.00038895,7]
[400386396,1767485442768,-150.0,0.000389,30]
[400386397,1767485442779,-300.0,0.00038912,2]
[400386398,1767485443020,-300.0,0.00038912,2]
[400386399,1767485443032,-150.0,0.00038919,7]
[400386400,1767485443046,-150.0,0.00038928,7]
[400386401,1767485443056,-235.2601907,0.00038928,7]
[400386402,1767485443067,-150.0,0.00038943,7]
[400386403,1767485443077,-150.0,0.00038954,7]
[400386404,1767485443088,-150.0,0.00038963,7]
[400386405,1767485443098,-150.0,0.00038966,7]
[400386406,1767485443108,-150.0,0.0003897,7]
[400386407,1767485443118,-235.2601907,0.00038971,7]
[400386408,1767485443129,-150.0,0.00038979,7]
[400386409,1767485443140,-150.0,0.00038993,7]
[400386411,1767485443150,-150.0,0.00038993,7]
[400386413,1767485443160,-235.2601907,0.00039015,7]
[400386414,1767485443170,-150.0,0.00039016,7]
[400386415,1767485443180,-150.0,0.00039024,7]
[400386416,1767485443192,-150.0,0.00039032,7]
[400386417,1767485443202,-150.0,0.00039037,7]
[400386418,1767485443212,-150.0,0.0003904,7]
[400386419,1767485443222,-150.0,0.00039051,7]
[400386420,1767485443232,-150.0,0.00039058,7]
[400386421,1767485443241,-235.2601907,0.00039058,7]
[400386422,1767485443251,-150.0,0.00039089,7]
[400386423,1767485443262,-150.0,0.00039091,7]
[400386424,1767485443273,-150.0,0.00039101,7]
[400386425,1767485443283,-235.2601907,0.00039102,7]
[400386426,1767485443293,-150.0,0.00039111,7]
[400386427,1767485443303,-150.0,0.00039124,7]
[400386428,1767485443314,-150.0,0.00039129,7]
[400386429,1767485443324,-150.0,0.00039135,7]
[400386430,1767485443334,-150.0,0.00039142,7]
[400386431,1767485443344,-235.2601907,0.00039146,7]
[400386432,1767485443354,-150.0,0.00039161,7]
[400386433,1767485443363,-150.0,0.00039163,7]
[400386434,1767485443373,-150.0,0.00039189,7]
[400386435,1767485443383,-150.0,0.00039189,7]
[400386436,1767485443393,-235.2601907,0.00039189,7]
[400386437,1767485443403,-150.0,0.00039189,7]
[400386438,1767485443413,-150.0,0.0003922,7]
[400386439,1767485443424,-150.0,0.00039222,7]
[400386440,1767485443435,-235.2601907,0.00039233,7]
[400386441,1767485443445,-150.0,0.00039236,7]
[400386442,1767485443455,-150.0,0.00039251,7]
[400386443,1767485443465,-150.0,0.00039254,7]
[400386444,1767485443475,-150.0,0.00039267,7]
[400386445,1767485443484,-235.2601907,0.00039276,7]
[400386446,1767485443494,-150.0,0.00039276,7]
[400386447,1767485443504,-150.0,0.00039283,7]
[400386448,1767485443514,-150.0,0.00039287,7]
[400386449,1767485443524,-150.0,0.00039295,7]
[400386450,1767485443534,-150.0,0.00039304,7]
[400386451,1767485443544,-150.0,0.00039309,7]
[400386452,1767485443554,-150.0,0.00039314,7]
[400386453,1767485443564,-150.0,0.0003932,7]
[400386454,1767485443574,-235.2601907,0.0003932,7]
[400386455,1767485443587,-150.0,0.00039344,7]
[400386456,1767485443601,-150.0,0.00039346,7]
[400386457,1767485443611,-235.2601907,0.00039363,7]
[400386458,1767485443621,-2555.79980342,0.00039374,4]
[400386459,1767485443631,-150.0,0.00039382,7]
[400386460,1767485443641,-1000.0,0.00039383,2]
[400386461,1767485443651,-150.0,0.00039385,7]
[400386462,1767485443661,-150.0,0.00039385,7]
[400386463,1767485443671,-150.0,0.00039389,7]
[400386464,1767485443681,-150.0,0.00039404,7]
[400386465,1767485443693,-235.2601907,0.00039407,7]
[400386466,1767485443703,-150.0,0.00039413,7]
[400386467,1767485443713,-150.0,0.00039424,7]
[400386468,1767485443722,-150.0,0.0003945,7]
[400386469,1767485443732,-235.2601907,0.0003945,7]
[400386470,1767485443742,-150.0,0.00039455,7]
[400386471,1767485443752,-150.0,0.0003946,7]
[400386472,1767485443762,-150.0,0.00039465,7]
[400386473,1767485443772,-150.0,0.00039473,7]
[400386474,1767485443782,-150.0,0.00039478,7]
[400386475,1767485443792,-150.0,0.00039483,7]
[400386476,1767485443802,-150.0,0.00039487,7]
[400386477,1767485443812,-235.2601907,0.00039494,7]
[400386478,1767485443822,-150.0,0.00039503,7]
[400386479,1767485443832,-150.0,0.00039516,7]
[400386480,1767485443841,-150.0,0.00039516,7]
[400386481,1767485443852,-150.0,0.00039516,7]
[400386482,1767485443861,-150.0,0.00039526,7]
[400386483,1767485443872,-150.0,0.00039528,7]
[400386484,1767485443881,-235.2601907,0.00039537,7]
[400386485,1767485443891,-150.0,0.00039558,7]
[400386486,1767485443902,-235.2601907,0.00039581,7]
[400386487,1767485443912,-150.0,0.00039581,7]
[400386488,1767485443922,-150.0,0.00039581,7]
[400386489,1767485443931,-150.0,0.00039581,7]
[400386490,1767485443944,-150.0,0.00039587,7]
[400386491,1767485443953,-150.0,0.00039601,7]
[400386492,1767485443963,-235.2601907,0.00039625,7]
[400386493,1767485443973,-150.0,0.00039626,7]
[400386494,1767485443983,-150.0,0.00039642,7]
[400386495,1767485443994,-150.0,0.00039646,7]
[400386496,1767485444004,-150.0,0.00039647,7]
[400386497,1767485444013,-397.81,0.00039654,2]
[400386498,1767485444023,-150.0,0.00039659,7]
[400386499,1767485444033,-150.0,0.00039659,7]
[400386500,1767485444046,-235.2601907,0.00039668,7]
[400386501,1767485444058,-150.0,0.00039674,7]
[400386502,1767485444069,-150.0,0.00039679,7]
[400386503,1767485444079,-150.0,0.00039705,7]
[400386504,1767485444091,-150.0,0.00039708,7]
[400386505,1767485444101,-150.0,0.00039712,7]
[400386506,1767485444110,-235.2601907,0.00039712,7]
[400386507,1767485444121,-150.0,0.00039727,7]
[400386508,1767485444132,-150.0,0.00039738,7]
[400386509,1767485444142,-150.0,0.00039747,7]
[400386510,1767485444152,-235.2601907,0.00039755,7]
[400386511,1767485444162,-150.0,0.00039755,7]
[400386512,1767485444172,-150.0,0.00039769,7]
[400386513,1767485444182,-150.0,0.00039777,7]
[400386514,1767485444194,-150.0,0.00039777,7]
[400386515,1767485444205,-150.0,0.00039792,7]
[400386516,1767485444214,-235.2601907,0.00039799,7]
[400386517,1767485444224,-150.0,0.00039812,7]
[400386518,1767485444234,-150.0,0.00039816,7]
[400386519,1767485444244,-150.0,0.0003982,7]
[400386520,1767485444255,-150.0,0.00039829,7]
[400386521,1767485444265,-150.0,0.00039832,7]
[400386522,1767485444275,-150.0,0.00039842,7]
[400386523,1767485444286,-235.2601907,0.00039842,7]
[400386524,1767485444296,-150.0,0.00039875,7]
[400386525,1767485444306,-150.0,0.00039875,7]
[400386526,1767485444317,-235.2601907,0.00039886,7]
[400386527,1767485444327,-2555.79980342,0.0003989,4]
[400386528,1767485444337,-150.0,0.0003989,7]
[400386529,1767485444347,-150.0,0.00039893,7]
[400386531,1767485444356,-150.0,0.00039894,7]
[400386533,1767485444366,-150.0,0.00039896,7]
[400386534,1767485444376,-6033.3676,0.000399,120]
[400386535,1767485444385,-150.0,0.00039908,7]
[400386536,1767485444395,-235.2601907,0.00039929,7]
[400386537,1767485444405,-150.0,0.00039932,7]
[400386538,1767485444415,-150.0,0.00039951,7]
[400386539,1767485444426,-150.0,0.00039958,7]
[400386540,1767485444436,-150.0,0.00039966,7]
[400386541,1767485444446,-150.0,0.00039973,7]
[400386542,1767485444455,-150.0,0.00039973,7]
[400386543,1767485444466,-235.2601907,0.00039973,7]
[400386544,1767485444475,-150.0,0.00039973,7]
[400386545,1767485444485,-150.0,0.00039981,7]
[400386546,1767485444495,-150.0,0.00039995,7]
[400386547,1767485444505,-800.0,0.0004,30]
[400386548,1767485444515,-150.0,0.00040004,7]
[400386549,1767485444524,-150.0,0.00040012,7]
[400386550,1767485444534,-235.2601907,0.00040016,7]
[400386551,1767485444544,-150.0,0.00040029,7]
[400386552,1767485444554,-150.0,0.00040038,7]
[400386553,1767485444563,-150.0,0.00040039,7]
[400386554,1767485444573,-150.0,0.00040051,7]
[400386555,1767485444583,-235.2601907,0.0004006,7]
[400386556,1767485444594,-2555.79980342,0.00040063,4]
[400386557,1767485444604,-150.0,0.00040065,7]
[400386558,1767485444614,-151.0,0.00040069,14]
[400386559,1767485444624,-150.0,0.00040071,7]
[400386560,1767485444633,-150.0,0.00040072,7]
[400386561,1767485444643,-500.0,0.00040073,5]
[400386562,1767485444655,-500.0,0.00040073,5]
[400386563,1767485444666,-175.0656664,0.00040073,5]
[400386564,1767485444677,-500.0,0.00040073,5]
[400386565,1767485444690,-536.24942027,0.00040073,5]
[400386566,1767485444699,-500.0,0.00040073,5]
[400386567,1767485444710,-500.0,0.00040073,5]
[400386568,1767485444720,-165.07212519,0.00040073,5]
[400386569,1767485444730,-500.51324187,0.00040073,5]
[400386570,1767485444740,-500.0,0.00040073,5]
[400386571,1767485444750,-500.0,0.00040073,5]
[400386572,1767485444759,-500.0,0.00040073,5]
[400386573,1767485444770,-169.60105551,0.00040073,5]
[400386574,1767485444780,-500.0,0.00040073,5]
[400386575,1767485444791,-500.0,0.00040073,5]
[400386576,1767485444801,-500.0,0.00040073,5]
[400386577,1767485444812,-224.47079016,0.00040073,5]
[400386578,1767485444822,-500.0,0.00040073,5]
[400386579,1767485444831,-538.18007522,0.00040073,5]
[400386580,1767485444842,-500.0,0.00040073,5]
[400386581,1767485444851,-500.0,0.00040073,5]
[400386582,1767485444861,-166.10290611,0.00040073,5]
[400386583,1767485444871,-500.0,0.00040073,5]
[400386584,1767485444881,-500.0,0.00040073,3]
[400386585,1767485444891,-500.0,0.00040073,5]
[400386586,1767485444900,-500.0,0.00040073,5]
[400386587,1767485444910,-437.57390351,0.00040073,5]
[400386588,1767485444920,-168.90161203,0.00040073,5]
[400386589,1767485444929,-500.0,0.00040073,5]
[400386590,1767485444941,-500.0,0.00040073,5]
[400386591,1767485444951,-500.0,0.00040073,5]
[400386592,1767485444961,-163.152831,0.00040073,5]
[400386593,1767485444972,-500.0,0.00040073,5]
[400386594,1767485444982,-500.0,0.00040073,5]
[400386595,1767485444991,-500.0,0.00040073,2]
[400386596,1767485445000,-236.21581436,0.00040073,5]
[400386597,1767485445010,-500.0,0.00040073,5]
[400386598,1767485445020,-484.98892147,0.00040073,5]
[400386599,1767485445029,-305.00383529,0.00040073,5]
[400386600,1767485445040,-500.0,0.00040073,5]
[400386601,1767485445054,-500.0,0.00040073,5]
[400386602,1767485445064,-162.33525672,0.00040073,5]
[400386603,1767485445073,-500.0,0.00040073,5]
[400386604,1767485445083,-150.0,0.00040103,2]
[400386605,1767485445095,-150.0,0.00040104,7]
[400386606,1767485445104,-235.2601907,0.00040104,7]
[400386607,1767485445115,-150.0,0.00040112,7]
[400386608,1767485445124,-150.0,0.00040124,7]
[400386609,1767485445135,-150.0,0.0004013,7]
[400386610,1767485445144,-150.0,0.00040133,7]
[400386611,1767485445154,-235.2601907,0.00040147,7]
[400386612,1767485445164,-150.0,0.0004015,7]
[400386613,1767485445174,-150.0,0.00040159,7]
[400386614,1767485445183,-150.0,0.00040169,7]
[400386615,1767485445194,-150.0,0.00040169,7]
[400386616,1767485445203,-150.0,0.00040177,7]
[400386617,1767485445212,-150.0,0.00040185,7]
[400386618,1767485445222,-235.2601907,0.00040191,7]
[400386619,1767485445231,-150.0,0.00040194,7]
[400386620,1767485445241,-2555.79980342,0.00040201,4]
[400386621,1767485445251,-151.0,0.00040208,120]
[400386622,1767485445260,-150.0,0.00040208,7]
[400386623,1767485445271,-10525.39229166,0.00040211,15]
[400386624,1767485445280,-150.0,0.00040234,7]
[400386625,1767485445291,-235.2601907,0.00040234,7]
[400386626,1767485445300,-150.0,0.00040234,7]
[400386627,1767485445310,-150.0,0.00040234,7]
[400386628,1767485445320,-150.0,0.00040234,7]
[400386629,1767485445331,-150.0,0.00040254,7]
[400386630,1767485445340,-150.0,0.00040258,7]
[400386631,1767485445350,-150.0,0.00040267,7]
[400386632,1767485445359,-235.2601907,0.00040278,7]
[400386633,1767485445369,-150.0,0.00040286,7]
[400386634,1767485445379,-150.0,0.00040289,7]
[400386635,1767485445389,-3029.17,0.0004029,2]
[400386636,1767485445399,-229.06,0.0004029,30]
[400386637,1767485445409,-150.0,0.00040299,7]
[400386638,1767485445419,-150.0,0.00040315,7]
[400386639,1767485445429,-150.0,0.00040319,7]
[400386640,1767485445440,-235.2601907,0.00040321,7]
[400386641,1767485445449,-9731.55396502,0.00040322,15]
[400386642,1767485445458,-150.0,0.00040332,7]
[400386643,1767485445468,-150.0,0.00040349,7]
[400386644,1767485445477,-150.0,0.00040365,7]
[400386645,1767485445487,-150.0,0.00040365,7]
[400386646,1767485445496,-235.2601907,0.00040365,7]
[400386647,1767485445506,-150.0,0.00040365,7]
[400386648,1767485445516,-226.95,0.00040375,120]
[400386649,1767485445526,-150.0,0.00040376,7]
[400386650,1767485445535,-150.0,0.00040385,7]
[400386651,1767485445545,-150.0,0.00040403,7]
[400386652,1767485445555,-150.0,0.00040405,7]
[400386653,1767485445564,-235.2601907,0.00040408,7]
[400386654,1767485445574,-150.0,0.0004043,7]
[400386655,1767485445583,-150.0,0.00040437,7]
[400386656,1767485445594,-2555.79980342,0.00040442,4]
[400386657,1767485445604,-152.0,0.00040443,14]
[400386658,1767485445613,-152.0,0.00040443,14]
[400386659,1767485445623,-1256.0,0.00040443,14]
[400386660,1767485445633,-150.0,0.00040443,7]
[400386661,1767485445643,-235.2601907,0.00040452,7]
[400386662,1767485445652,-150.0,0.00040455,7]
[400386664,1767485445662,-150.0,0.00040463,7]
[400386665,1767485445672,-150.0,0.00040474,7]
[400386666,1767485445683,-150.0,0.00040478,7]
[400386667,1767485445693,-150.0,0.00040488,7]
[400386668,1767485445703,-150.0,0.00040495,7]
[400386669,1767485445712,-235.2601907,0.00040495,7]
[400386670,1767485445722,-150.0,0.00040497,7]
[400386671,1767485445731,-150.0,0.00040522,7]
[400386672,1767485445741,-150.0,0.00040522,7]
[400386673,1767485445751,-235.2601907,0.00040539,7]
[400386674,1767485445760,-150.0,0.00040551,7]
[400386675,1767485445770,-150.0,0.00040558,7]
[400386676,1767485445780,-150.0,0.00040561,7]
[400386677,1767485445789,-150.0,0.00040561,7]
[400386678,1767485445799,-150.0,0.00040572,7]
[400386679,1767485445809,-235.2601907,0.00040582,7]
[400386680,1767485445819,-150.0,0.000406,7]
[400386681,1767485445829,-2555.79980342,0.00040611,4]
[400386682,1767485445838,-150.0,0.00040612,7]
[400386683,1767485445848,-150.0,0.00040619,7]
[400386684,1767485445857,-255.45570381,0.00040621,5]
[400386685,1767485445867,-527.87076503,0.00040621,5]
[400386686,1767485445884,-1000.0,0.00040621,5]
[400386687,1767485445897,-1000.0,0.00040621,5]
[400386688,1767485445907,-1000.0,0.00040621,5]
[400386689,1767485445918,-1000.0,0.00040621,5]
[400386690,1767485445928,-1000.0,0.00040621,5]
[400386691,1767485445938,-1000.0,0.00040621,5]
[400386692,1767485445948,-1099.98058356,0.00040621,5]
[400386693,1767485445957,-632.38992075,0.00040621,5]
[400386694,1767485445967,-826.63443257,0.00040621,5]
[400386695,1767485445977,-1000.85459949,0.00040621,5]
[400386696,1767485445987,-1000.51013306,0.00040621,5]
[400386697,1767485445996,-1000.0,0.00040621,5]
[400386698,1767485446006,-1000.0,0.00040621,3]
[400386699,1767485446015,-1000.0,0.00040621,5]
[400386700,1767485446025,-1000.0,0.00040621,5]
[400386701,1767485446035,-367.26456673,0.00040621,5]
[400386702,1767485446047,-1000.0,0.00040621,5]
[400386703,1767485446059,-1000.0,0.00040621,5]
[400386704,1767485446069,-645.49615289,0.00040621,5]
[400386705,1767485446079,-506.57783291,0.00040621,5]
[400386707,1767485446089,-1000.0,0.00040621,2]
[400386708,1767485446099,-1000.0,0.00040621,5]
[400386709,1767485446109,-1000.73448024,0.00040621,5]
[400386710,1767485446118,-500.0,0.00040621,5]
[400386711,1767485446129,-1000.0,0.00040621,5]
[400386712,1767485446139,-150.0,0.00040621,7]
[400386714,1767485446149,-150.0,0.00040624,7]
[400386716,1767485446159,-235.2601907,0.00040626,7]
[400386717,1767485446169,-150.0,0.00040626,7]
[400386718,1767485446180,-2555.79980342,0.00040643,4]
[400386719,1767485446190,-150.0,0.00040645,7]
[400386720,1767485446200,-7031.16,0.00040654,2]
[400386721,1767485446211,-150.0,0.00040657,7]
[400386722,1767485446220,-150.0,0.00040659,7]
[400386723,1767485446232,-235.2601907,0.0004067,7]
[400386724,1767485446242,-150.0,0.00040678,7]
[400386725,1767485446251,-150.0,0.00040679,7]
[400386726,1767485446261,-150.0,0.00040691,7]
[400386727,1767485446270,-150.0,0.00040694,7]
[400386728,1767485446281,-150.0,0.00040697,7]
[400386730,1767485446291,-235.2601907,0.00040713,7]
[400386732,1767485446301,-150.0,0.00040713,7]
[400386733,1767485446311,-1241.7,0.0004073,59]
[400386734,1767485446321,-150.0,0.0004074,7]
[400386735,1767485446331,-150.0,0.00040741,7]
[400386736,1767485446341,-150.0,0.00040757,7]
[400386737,1767485446351,-150.0,0.00040757,7]
[400386738,1767485446361,-235.2601907,0.00040757,7]
[400386739,1767485446371,-150.0,0.00040757,7]
[400386740,1767485446381,-150.0,0.0004077,7]
[400386741,1767485446391,-150.0,0.00040787,7]
[400386742,1767485446400,-235.2601907,0.000408,7]
[400386743,1767485446410,-150.0,0.00040801,7]
[400386744,1767485446420,-150.0,0.00040822,7]
[400386745,1767485446430,-150.0,0.00040826,7]
[400386746,1767485446441,-150.0,0.00040835,7]
[400386747,1767485446451,-150.0,0.00040839,7]
[400386748,1767485446461,-150.0,0.00040843,7]
[400386749,1767485446471,-235.2601907,0.00040844,7]
[400386750,1767485446480,-150.0,0.00040855,7]
[400386751,1767485446490,-150.0,0.00040862,7]
[400386752,1767485446500,-150.0,0.00040866,7]
[400386753,1767485446510,-150.0,0.00040887,7]
[400386754,1767485446520,-235.2601907,0.00040887,7]
[400386755,1767485446530,-150.0,0.0004091,7]
[400386756,1767485446539,-150.0,0.00040913,7]
[400386757,1767485446550,-150.0,0.00040916,7]
[400386758,1767485446560,-150.0,0.00040922,7]
[400386759,1767485446570,-235.2601907,0.00040931,7]
[400386760,1767485446579,-150.0,0.00040953,7]
[400386761,1767485446589,-150.0,0.00040953,7]
[400386762,1767485446599,-150.0,0.00040953,7]
[400386763,1767485446609,-150.0,0.00040953,7]
[400386764,1767485446618,-150.0,0.00040953,7]
[400386765,1767485446628,-150.0,0.00040953,7]
[400386766,1767485446638,-235.2601907,0.00040974,7]
[400386767,1767485446647,-150.0,0.00040983,7]
[400386768,1767485446657,-150.0,0.00040989,7]
[400386769,1767485446667,-150.0,0.00040992,7]
[400386770,1767485446677,-150.0,0.00040995,7]
[400386771,1767485446686,-154.59,0.00041,120]
[400386772,1767485446696,-312.0,0.00041,120]
[400386773,1767485446706,-150.0,0.00041018,7]
[400386774,1767485446716,-235.2601907,0.00041018,7]
[400386775,1767485446725,-150.0,0.00041039,7]
[400386776,1767485446735,-150.0,0.00041044,7]
[400386777,1767485446745,-150.0,0.00041051,7]
[400386778,1767485446755,-235.2601907,0.00041061,7]
[400386779,1767485446765,-150.0,0.00041062,7]
[400386780,1767485446775,-150.0,0.00041066,7]
[400386781,1767485446785,-192.04007154,0.00041068,2]
[400386782,1767485446795,-150.0,0.0004107,7]
[400386783,1767485446805,-150.0,0.00041079,7]
[400386784,1767485446815,-150.0,0.00041083,7]
[400386785,1767485446825,-2555.79980342,0.0004109,4]
[400386786,1767485446835,-999.0,0.00041095,120]
[400386787,1767485446845,-193.82763253,0.00041096,2]
[400386788,1767485446854,-255.73591232,0.00041096,70]
[400386789,1767485446864,-3178.64343568,0.000411,120]
[400386790,1767485446873,-151.0,0.000411,120]
[400386791,1767485446883,-151.0,0.000411,120]
[400386792,1767485446894,-151.0,0.000411,120]
[400386793,1767485446904,-150.0,0.00041104,30]
[400386794,1767485446915,-235.2601907,0.00041105,30]
[400386795,1767485446925,-150.0,0.00041118,30]
[400386796,1767485446936,-150.0,0.00041135,30]
[400386797,1767485446946,-150.0,0.00041149,30]
[400386798,1767485446956,-150.0,0.00041149,30]
[400386799,1767485446966,-235.2601907,0.00041149,30]
[400386800,1767485446976,-150.0,0.00041149,30]
[400386801,1767485446986,-2555.79980342,0.00041158,4]
[400386802,1767485446996,-177.799574,0.00041159,120]
[400386804,1767485447007,-150.0,0.00041164,30]
[400386806,1767485447016,-150.0,0.00041165,30]
[400386808,1767485447026,-1500.0,0.00041168,10]
[400386810,1767485447035,-501.70391837,0.00041168,10]
[400386812,1767485447047,-1500.0,0.00041168,10]
[400386814,1767485447059,-1500.0,0.00041168,10]
[400386816,1767485447069,-1500.0,0.00041168,10]
[400386818,1767485447079,-941.4218678,0.00041168,10]
[400386820,1767485447090,-1500.77724877,0.00041168,10]
[400386823,1767485447102,-1625.61685374,0.00041168,3]
[400386825,1767485447112,-634.28770415,0.00041168,10]
[400386827,1767485447121,-1507.4808143,0.00041168,10]
[400386829,1767485447134,-433.04790052,0.00041168,10]
[400386831,1767485447145,-1500.0,0.00041168,10]
[400386833,1767485447155,-1500.0,0.00041168,2]
[400386835,1767485447165,-1500.0,0.00041168,10]
[400386837,1767485447174,-1500.0,0.00041168,10]
[400386855,1767485447322,-235.2601907,0.00041192,30]
[400386857,1767485447349,-150.0,0.00041192,30]
[400386859,1767485447360,-150.0,0.00041208,30]
[400386861,1767485447370,-150.0,0.00041211,30]
[400386863,1767485447381,-150.0,0.00041214,30]
[400386865,1767485447391,-150.0,0.00041226,30]
[400386868,1767485447401,-150.0,0.00041227,30]
[400386870,1767485447411,-235.2601907,0.00041236,30]
[400386872,1767485447421,-150.0,0.00041247,30]
[400386874,1767485447432,-150.0,0.00041248,30]
[400386875,1767485447443,-150.0,0.00041261,30]
[400386878,1767485447453,-150.0,0.00041279,30]
[400386880,1767485447463,-235.2601907,0.00041279,30]
[400386882,1767485447472,-150.0,0.00041281,30]
[400386884,1767485447483,-150.0,0.00041284,30]
[400386886,1767485447492,-150.0,0.00041287,30]
[400386888,1767485447502,-150.0,0.00041293,30]
[400386890,1767485447511,-150.0,0.00041305,30]
[400386892,1767485447521,-235.2601907,0.00041323,30]
[400386894,1767485447531,-150.0,0.00041333,30]
[400386896,1767485447540,-150.0,0.00041344,30]
[400386898,1767485447551,-150.0,0.00041344,30]
[400386900,1767485447560,-150.0,0.00041347,30]
[400386902,1767485447570,-150.0,0.00041354,30]
[400386904,1767485447580,-235.2601907,0.00041366,30]
[400386906,1767485447590,-150.0,0.00041384,30]
[400386908,1767485447600,-150.0,0.00041384,30]
[400386910,1767485447609,-3127.58912483,0.00041393,7]
[400386912,1767485447619,-150.0,0.00041408,30]
[400386914,1767485447629,-150.0,0.0004141,30]
[400386916,1767485447639,-235.2601907,0.0004141,30]
[400386918,1767485447648,-192.04007149,0.0004141,3]
[400386920,1767485447658,-150.0,0.00041417,30]
[400386922,1767485447668,-150.0,0.00041428,30]
[400386924,1767485447681,-150.0,0.00041432,30]
[400386926,1767485447691,-150.0,0.00041442,30]
[400386928,1767485447701,-150.0,0.0004145,30]
[400386930,1767485447711,-235.2601907,0.00041453,30]
[400386932,1767485447721,-150.0,0.00041462,30]
[400386934,1767485447731,-150.0,0.00041469,30]
[400386937,1767485447746,-150.0,0.00041475,30]
[400386939,1767485447756,-2555.79980342,0.0004149,4]
[400386941,1767485447766,-235.2601907,0.00041497,30]
[400386943,1767485447776,-4687.08,0.000415,14]
[400386945,1767485447786,-150.0,0.00041501,30]
[400386947,1767485447796,-150.0,0.00041502,30]
[400386949,1767485447806,-150.0,0.0004152,30]
[400386951,1767485447816,-150.0,0.00041529,30]
[400386953,1767485447825,-150.0,0.0004154,30]
[400386955,1767485447835,-150.0,0.0004154,30]
[400386958,1767485447845,-235.2601907,0.0004154,30]
[400386960,1767485447856,-150.0,0.0004154,30]
[400386962,1767485447866,-150.0,0.00041556,30]
[400386964,1767485447875,-150.0,0.00041574,30]
[400386966,1767485447885,-235.2601907,0.00041584,30]
[400386968,1767485447895,-150.0,0.00041587,30]
[400386970,1767485447905,-150.0,0.0004159,30]
[400386972,1767485447915,-150.0,0.00041606,30]
[400386974,1767485447926,-150.0,0.00041616,30]
[400386976,1767485447936,-150.0,0.00041619,30]
[400386978,1767485447946,-235.2601907,0.00041628,30]